fUSD/lending_fUSD_20250823
["ID","MTS","AMOUNT","RATE_DAILY","PERIOD"]
[380946068,1755910240119,-500.0,0.00012065,2]
[380946069,1755910240129,-1500.0,0.00012085,2]
[380946070,1755910240140,-2275.24,0.0001211,2]
[380946072,1755910240151,-500.0,0.0001212,2]
[380946074,1755910240161,-500.0,0.00012127,2]
[380946076,1755910240172,-500.0,0.00012175,2]
[380946078,1755910240182,-200.0,0.00012193,2]
[380946080,1755910240193,-1694.27031771,0.00012207,2]
[380946082,1755910240203,-500.0,0.0001223,2]
[380946084,1755910240214,-500.0,0.00012285,2]
[380946086,1755910240225,-666.58188768,0.00012325,2]
[380946088,1755910240235,-500.0,0.0001234,2]
[380946090,1755910240246,-500.0,0.00012395,2]
[380946092,1755910240257,-420.0,0.00012423,2]
[380946094,1755910240267,-1680.0,0.0001244,2]
[380946096,1755910240278,-500.0,0.0001245,2]
[380946098,1755910240295,-1000.0,0.00012497,2]
[380946100,1755910240310,-2000.0,0.00012499,2]
[380946102,1755910240321,-2000.0,0.00012499,2]
[380946104,1755910240331,-2000.0,0.00012499,2]
[380946106,1755910240342,-2000.0,0.00012499,2]
[380946108,1755910240353,-2000.0,0.00012499,2]
[380946110,1755910240363,-2000.0,0.00012499,2]
[380946112,1755910240373,-975.12,0.00012499,2]
[380946114,1755910240384,-1694.27031771,0.00012552,2]
[380946116,1755910240395,-5080.11383588,0.00012556,2]
[380946117,1755910240405,-166.66,0.0001259,2]
[380946118,1755910240416,-255.0,0.00012602,2]
[380946119,1755910240427,-324.77849937,0.00012703,2]
[380946120,1755910240438,-2500.0,0.00012717,3]
[380946121,1755910240448,-2500.0,0.00012726,3]
[380946122,1755910240458,-2500.0,0.00012734,3]
[380946123,1755910240468,-2500.0,0.00012743,3]
[380946124,1755910240479,-2500.0,0.00012752,3]
[380946125,1755910240490,-2500.0,0.00012761,3]
[380946126,1755910240500,-15320.32879016,0.00012768,2]
[380946127,1755910240511,-2500.0,0.0001277,3]
[380946128,1755910240521,-2500.0,0.00012778,3]
[380946129,1755910240531,-2500.0,0.00012787,3]
[380946130,1755910240541,-2500.0,0.00012796,3]
[380946131,1755910240552,-2500.0,0.00012805,3]
[380946132,1755910240564,-426.31075384,0.00012812,2]
[380946133,1755910240574,-2500.0,0.00012814,3]
[380946134,1755910240584,-2500.0,0.00012822,3]
[380946135,1755910240595,-2500.0,0.00012831,3]
[380946136,1755910240606,-2500.0,0.0001284,3]
[380946137,1755910240617,-156.31,0.00012844,2]
[380946138,1755910240626,-2500.0,0.00012849,3]
[380946139,1755910240639,-156.31,0.00012852,2]
[380946140,1755910240651,-2500.0,0.00012858,3]
[380946141,1755910240662,-156.31,0.0001286,2]
[380946142,1755910240672,-2500.0,0.00012866,3]
[380946143,1755910240682,-156.31,0.00012868,2]
[380946144,1755910240692,-2500.0,0.00012875,3]
[380946145,1755910240703,-156.31,0.00012876,2]
[380946146,1755910240714,-2500.0,0.00012884,3]
[380946147,1755910240724,-156.31,0.00012884,2]
[380946148,1755910240735,-156.31,0.00012892,2]
[380946149,1755910240746,-2500.0,0.00012893,3]
[380946150,1755910240757,-1694.27031771,0.00012897,2]
[380946151,1755910240768,-156.31,0.000129,2]
[380946152,1755910240779,-156.31,0.00012908,2]
[380946153,1755910240789,-5000.0,0.00013,2]
[380946154,1755910240800,-166.66,0.00013006,2]
[380946155,1755910240811,-189.07849403,0.00013018,2]
[380946156,1755910240822,-15320.32879011,0.00013043,2]
[380946157,1755910240834,-721.12765535,0.00013223,2]
[380946158,1755910240844,-491.20963589,0.00013223,2]
[380946159,1755910240854,-151.0,0.00013223,2]
[380946160,1755910240864,-160.0,0.00013223,2]
[380946161,1755910240874,-1000.0,0.00013223,2]
[380946162,1755910240884,-1000.0,0.00013223,2]
[380946163,1755910240894,-1000.0,0.00013223,2]
[380946164,1755910240904,-1000.0,0.00013223,2]
[380946165,1755910240915,-322.6107,0.00013223,2]
[380946166,1755910240926,-1000.0,0.00013223,2]
[380946167,1755910240937,-375.93860979,0.00013223,2]
[380946168,1755910240988,-624.06139021,0.00013223,2]
[380946169,1755910241000,-1000.0,0.00013223,2]
[380946170,1755910241010,-1000.0,0.00013223,2]
[380946171,1755910241020,-1000.0,0.00013223,2]
[380946172,1755910241030,-1000.0,0.00013223,2]
[380946173,1755910241040,-1000.0,0.00013223,2]
[380946174,1755910241051,-300.0,0.00013223,2]
[380946175,1755910241061,-151.0,0.00013223,2]
[380946176,1755910241072,-300.0,0.00013223,2]
[380946177,1755910241083,-300.0,0.00013223,2]
[380946178,1755910241094,-300.0,0.00013223,2]
[380946179,1755910241105,-300.0,0.00013223,2]
[380946180,1755910241116,-300.0,0.00013223,2]
[380946181,1755910241126,-300.0,0.00013223,2]
[380946182,1755910241136,-300.0,0.00013223,2]
[380946183,1755910241147,-300.0,0.00013223,2]
[380946184,1755910241157,-300.0,0.00013223,2]
[380946185,1755910241171,-116.46559332,0.00013223,2]
[380946186,1755910241192,-245.82536871,0.00013223,2]
[380946187,1755910241202,-75.92213174,0.00013223,2]
[380946188,1755910241224,-201.43465878,0.00013223,2]
[380946189,1755910241235,-69.38464193,0.00013242,2]
[380946192,1755910242880,-2500.0,0.00012708,3]
[380946193,1755910242891,-1624.88567578,0.00013242,2]
[380946194,1755910242900,-848.18549476,0.00013297,2]
[380946196,1755910243963,-296.11450524,0.00013297,2]
[380946197,1755910243973,-12379.11006083,0.00013318,2]
[380946199,1755910245655,-2941.21872928,0.00013318,2]
[380946200,1755910245665,-166.66,0.00013421,2]
[380946201,1755910245679,-321.27573346,0.00013424,2]
[380946202,1755910245694,-185.28559983,0.00013424,2]
[380946203,1755910245708,-3106.0,0.00013425,2]
[380946204,1755910245721,-1419.7667457,0.00013425,2]
[380946205,1755910246035,-1639.9999997,0.00013425,2]
[380946206,1755910246052,-277.2332546,0.00013425,2]
[380946207,1755910246065,-2432.014339,0.00013486,2]
[380946222,1755911062274,500.0,0.00028767,120]
[380946224,1755911204254,1000.0,0.00028767,120]
[380946225,1755911225379,800.0,0.000137,5]
[380946226,1755911227117,1100.0,0.000138,5]
[380946227,1755911229885,1400.0,0.000139,5]
[380946228,1755911231333,200.0,0.000149,5]
[380946229,1755911285322,160.0,0.00011941,7]
[380946235,1755911431816,-831.81,0.00011891,2]
[380946236,1755911431827,-250.0,0.00011894,2]
[380946237,1755911431837,-166.48,0.00012046,2]
[380946238,1755911431847,-2010.0,0.00012126,2]
[380946239,1755911431857,-913.42,0.00012285,2]
[380946240,1755911431867,-150.0,0.000123,2]
[380946241,1755911431877,-1137.62,0.0001232,2]
[380946242,1755911431887,-200.0,0.00012346,2]
[380946243,1755911431897,-1000.0,0.00012374,2]
[380946244,1755911431907,-175.32,0.00012515,2]
[380946245,1755911431916,-1200.0,0.00012619,2]
[380946246,1755911431926,-2500.0,0.0001262,3]
[380946247,1755911431941,-300.0,0.00012625,2]
[380946248,1755911431950,-2500.0,0.00012629,3]
[380946249,1755911431960,-2500.0,0.00012638,3]
[380946250,1755911431972,-2500.0,0.00012646,3]
[380946251,1755911431982,-2500.0,0.00012655,3]
[380946252,1755911431991,-2500.0,0.00012664,3]
[380946253,1755911432000,-2500.0,0.00012673,3]
[380946254,1755911432012,-2500.0,0.00012682,3]
[380946255,1755911432022,-2500.0,0.0001269,3]
[380946256,1755911432033,-2500.0,0.00012699,3]
[380946257,1755911432042,-2000.0,0.00013,2]
[380946258,1755911432057,-2789.28368283,0.00013115,2]
[380946259,1755911432067,-150.0,0.00013154,2]
[380946260,1755911432078,-166.67,0.00013154,2]
[380946261,1755911432087,-1085.0,0.00013188,2]
[380946262,1755911432098,-199.62411246,0.0001319,2]
[380946263,1755911432109,-187.2593623,0.0001319,2]
[380946264,1755911432119,-7091.03147184,0.00013205,2]
[380946265,1755911432128,-500.0,0.00013207,2]
[380946266,1755911432138,-486.61122081,0.00013207,2]
[380946267,1755911432148,-155.26773336,0.00013207,2]
[380946269,1755911432158,-151.0,0.00013207,2]
[380946271,1755911432167,-500.0,0.00013207,2]
[380946273,1755911432176,-3059.5804994,0.00013215,2]
[380946275,1755911432186,-16511.042549,0.00013215,2]
[380946277,1755911432195,-32377.18185224,0.00013215,2]
[380946279,1755911432208,-44572.06512196,0.00013215,2]
[380946281,1755911432217,-48430.94586378,0.00013215,2]
[380946286,1755911432233,-12446.86905961,0.00013215,2]
[380946289,1755911432244,-6983.27336121,0.00013215,2]
[380946291,1755911432254,-1465.62111871,0.00013215,2]
[380946293,1755911432264,-19474.92395341,0.00013215,2]
[380946297,1755911432296,-1516.64545226,0.00013215,2]
[380946302,1755911432332,-3556.78862233,0.00013215,2]
[380946308,1755911432378,-1810.1877568,0.00013215,2]
[380946338,1755911437759,-24644.2744549,0.00013215,2]
[380946339,1755911437831,-714.02199562,0.00013215,2]
[380946358,1755911440020,-154843.34314337,0.00013215,2]
[380946359,1755911440031,-2789.28368276,0.0001329,2]
[380946360,1755911440040,-418.91,0.00013318,2]
[380946361,1755911440051,-427.87,0.00013318,2]
[380946362,1755911440061,-300.24,0.00013318,2]
[380946363,1755911440071,-419.57,0.00013318,2]
[380946364,1755911440080,-880.68629776,0.00013341,2]
[380946365,1755911440090,-2333.33333,0.0001335,2]
[380946366,1755911440100,-2789.28368276,0.00013466,2]
[380946367,1755911440109,-151.31924293,0.00013473,2]
[380946368,1755911440119,-200.0,0.00013486,2]
[380946369,1755911440129,-200.0,0.00013486,2]
[380946370,1755911440139,-171.14727462,0.00013486,2]
[380946371,1755911440148,-3367.985661,0.00013486,2]
[380946372,1755911440158,-5800.0,0.00013486,2]
[380946373,1755911440167,-5800.0,0.00013495,2]
[380946374,1755911440177,-5800.0,0.00013495,2]
[380946375,1755911440186,-200.0,0.000135,4]
[380946376,1755911440196,-241.95431669,0.00013502,2]
[380946377,1755911440206,-5800.0,0.00013503,2]
[380946378,1755911440215,-5800.0,0.00013503,2]
[380946379,1755911440225,-5800.0,0.00013512,2]
[380946380,1755911440235,-5800.0,0.00013512,2]
[380946381,1755911440244,-5800.0,0.0001352,2]
[380946382,1755911440254,-5800.0,0.0001352,2]
[380946383,1755911440263,-5800.0,0.00013529,2]
[380946384,1755911440272,-5800.0,0.00013529,2]
[380946385,1755911440282,-1153675.47229596,0.00013537,2]
[380946389,1755911443012,-459230.34800568,0.00013537,2]
[380946390,1755911443050,-14959.09406203,0.00013537,2]
[380946391,1755911443060,-5800.0,0.00013537,2]
[380946392,1755911443070,-396.0,0.00013562,2]
[380946393,1755911443079,-866.83924589,0.00013588,2]
[380946394,1755911443089,-10395.45173096,0.00013598,2]
[380946401,1755911445774,-1115.32334755,0.00013598,2]
[380946402,1755911445836,-1524.25,0.00013598,2]
[380946403,1755911446115,-1539.14027129,0.00013598,2]
[380946422,1755911601319,2000.0,0.00024965,120]
[380946423,1755911650051,-150.7924,0.00012026,2]
[380946424,1755911650074,-189.07399413,0.0001277,2]
[380946425,1755911655432,-151.0,0.0001277,2]
[380946428,1755911892865,506.43,0.0002876,120]
[380946430,1755912055051,-200.0,0.00012671,2]
[380946431,1755912055076,-107.98,0.00012671,2]
[380946432,1755912056483,-151.0,0.00012671,2]
[380946433,1755912058711,-182.98,0.00012671,2]
[380946434,1755912144201,-384.137759,0.0001248,2]
[380946435,1755912152615,-150.0,0.00012583,2]
[380946437,1755912213678,-427.3,0.00012671,2]
[380946438,1755912213699,-568.81,0.00012703,2]
[380946439,1755912213720,-1000.0,0.00012834,2]
[380946440,1755912213741,-166.12,0.00013088,2]
[380946441,1755912213762,-1250.0,0.00013094,2]
[380946442,1755912213782,-1250.0,0.00013094,2]
[380946443,1755912213804,-300.0,0.00013112,2]
[380946444,1755912213825,-1200.0,0.00013113,2]
[380946445,1755912213846,-1026.0,0.00013113,2]
[380946446,1755912214074,-150.0,0.00013114,2]
[380946447,1755912214097,-15235.4397,0.00013115,2]
[380946448,1755912214118,-425.18,0.00013115,2]
[380946449,1755912214140,-303.81,0.00013115,2]
[380946450,1755912214161,-418.47,0.00013115,2]
[380946451,1755912214183,-77684.354,0.00013115,2]
[380946452,1755912214210,-419.15,0.00013115,2]
[380946453,1755912214233,-1500.0,0.00013115,2]
[380946454,1755912214255,-303.77,0.00013115,2]
[380946455,1755912214276,-428.89,0.00013115,2]
[380946456,1755912214296,-880.68629776,0.00013364,2]
[380946457,1755912214318,-1044.73205054,0.00013424,2]
[380946458,1755912214337,-300.0,0.00013432,2]
[380946459,1755912214358,-993.43,0.00013432,2]
[380946460,1755912214377,-150.0,0.00013432,2]
[380946461,1755912214400,-300.0,0.00013432,2]
[380946462,1755912214421,-150.0,0.00013432,2]
[380946463,1755912214444,-1078.18,0.00013432,2]
[380946464,1755912214472,-803.26,0.00013432,2]
[380946465,1755912214494,-421.31,0.00013432,2]
[380946466,1755912214516,-25951.5151977,0.00013479,2]
[380946467,1755912214538,-1797.2162359,0.00013479,2]
[380946468,1755912214559,-152.3275435,0.00013491,2]
[380946469,1755912214580,-1631.1797,0.00013498,2]
[380946470,1755912214601,-5000.0,0.00013498,2]
[380946471,1755912214621,-150.0,0.000135,2]
[380946472,1755912214642,-2898.52879478,0.000135,2]
[380946473,1755912214663,-417.2,0.00013537,2]
[380946474,1755912214684,-300.19,0.00013537,2]
[380946475,1755912214705,-421.03,0.00013537,2]
[380946476,1755912214725,-418.12,0.00013537,2]
[380946477,1755912214746,-5800.0,0.00013537,2]
[380946478,1755912214766,-1278.1157156,0.00013598,2]
[380946479,1755912214786,-171.14727463,0.00013598,2]
[380946480,1755912214806,-11125.92650672,0.00013598,2]
[380946481,1755912214827,-168.53342607,0.00013598,2]
[380946482,1755912214848,-1944.44444,0.00013598,2]
[380946483,1755912214868,-1000.0,0.00013598,2]
[380946484,1755912214888,-707.9659,0.00013598,2]
[380946485,1755912214909,-500.0,0.000136,4]
[380946486,1755912214929,-202.4,0.00013625,2]
[380946487,1755912214950,-2898.52879472,0.00013694,2]
[380946488,1755912214972,-182.74247158,0.00013697,2]
[380946489,1755912215298,-291.6142184,0.00013697,2]
[380946490,1755912215319,-400.0,0.00013698,2]
[380946491,1755912215340,-400.0,0.00013698,2]
[380946492,1755912215361,-400.0,0.00013698,2]
[380946493,1755912215382,-400.0,0.00013698,2]
[380946494,1755912215402,-400.0,0.00013698,2]
[380946495,1755912215422,-400.0,0.00013698,2]
[380946496,1755912215442,-400.0,0.00013698,2]
[380946497,1755912215463,-400.0,0.00013698,2]
[380946498,1755912215483,-400.0,0.00013698,2]
[380946499,1755912215505,-400.0,0.00013698,2]
[380946500,1755912215525,-400.0,0.00013698,2]
[380946501,1755912215545,-400.0,0.00013698,2]
[380946502,1755912215565,-400.0,0.00013698,2]
[380946503,1755912215585,-400.0,0.00013698,2]
[380946504,1755912215606,-400.0,0.00013698,2]
[380946505,1755912215627,-400.0,0.00013698,2]
[380946506,1755912215647,-400.0,0.00013698,2]
[380946507,1755912215667,-210.57077828,0.00013698,2]
[380946508,1755912215688,-400.0,0.00013698,2]
[380946509,1755912215708,-400.0,0.00013698,2]
[380946510,1755912215728,-400.0,0.00013698,2]
[380946511,1755912215750,-400.0,0.00013698,2]
[380946512,1755912215769,-401.43545826,0.00013698,2]
[380946513,1755912215789,-400.0,0.00013698,2]
[380946514,1755912215810,-400.0,0.00013698,2]
[380946515,1755912215830,-400.0,0.00013698,2]
[380946516,1755912215850,-400.0,0.00013698,2]
[380946517,1755912215870,-400.0,0.00013698,2]
[380946518,1755912215891,-400.0,0.00013698,2]
[380946519,1755912215911,-400.0,0.00013698,2]
[380946520,1755912215932,-400.0,0.00013698,2]
[380946521,1755912215953,-400.0,0.00013698,2]
[380946522,1755912215973,-400.0,0.00013698,2]
[380946523,1755912215994,-400.0,0.00013698,2]
[380946524,1755912216014,-400.0,0.00013698,2]
[380946525,1755912216034,-400.0,0.00013698,2]
[380946526,1755912216055,-400.0,0.00013698,2]
[380946527,1755912216075,-400.0,0.00013698,2]
[380946528,1755912216095,-400.0,0.00013698,2]
[380946529,1755912216116,-443.40685647,0.00013698,2]
[380946530,1755912216136,-455.30795109,0.00013698,2]
[380946531,1755912216156,-400.0,0.00013698,2]
[380946532,1755912216176,-400.0,0.00013698,2]
[380946533,1755912216196,-400.0,0.00013698,2]
[380946534,1755912216220,-400.0,0.00013698,2]
[380946535,1755912216240,-400.0,0.00013698,2]
[380946536,1755912216260,-400.0,0.00013698,2]
[380946537,1755912216280,-400.0,0.00013698,2]
[380946538,1755912216301,-400.0,0.00013698,2]
[380946539,1755912216321,-400.0,0.00013698,2]
[380946540,1755912216341,-400.0,0.00013698,2]
[380946541,1755912216363,-400.0,0.00013698,2]
[380946542,1755912216384,-400.0,0.00013698,2]
[380946543,1755912216405,-400.0,0.00013698,2]
[380946544,1755912216425,-401.2616877,0.00013698,2]
[380946545,1755912216445,-213.80671901,0.00013698,2]
[380946546,1755912216464,-534.33447537,0.00013698,2]
[380946547,1755912216485,-400.0,0.00013698,2]
[380946548,1755912216507,-400.0,0.00013698,2]
[380946549,1755912216527,-400.0,0.00013698,2]
[380946550,1755912216547,-400.70232944,0.00013698,2]
[380946551,1755912216566,-1012.88,0.00013698,2]
[380946552,1755912216587,-400.0,0.00013698,2]
[380946553,1755912216607,-400.0,0.00013698,2]
[380946554,1755912216627,-400.0,0.00013698,2]
[380946555,1755912216648,-400.0,0.00013698,2]
[380946556,1755912216669,-400.0,0.00013698,2]
[380946557,1755912216689,-400.0,0.00013698,2]
[380946558,1755912216709,-400.0,0.00013698,2]
[380946559,1755912216729,-400.0,0.00013698,2]
[380946560,1755912216749,-400.0,0.00013698,2]
[380946561,1755912216769,-400.0,0.00013698,2]
[380946562,1755912216789,-400.0,0.00013698,2]
[380946563,1755912216809,-546.86590495,0.00013698,2]
[380946564,1755912216831,-400.0,0.00013698,2]
[380946565,1755912216852,-400.0,0.00013698,2]
[380946566,1755912216872,-630.67,0.00013698,2]
[380946567,1755912216893,-400.0,0.00013698,2]
[380946568,1755912216913,-400.0,0.00013698,2]
[380946569,1755912216933,-400.0,0.00013698,2]
[380946570,1755912216954,-400.0,0.00013698,2]
[380946571,1755912216974,-400.0,0.00013698,2]
[380946572,1755912216994,-400.0,0.00013698,2]
[380946573,1755912217014,-400.0,0.00013698,2]
[380946574,1755912217035,-400.0,0.00013698,2]
[380946575,1755912217056,-400.0,0.00013698,2]
[380946576,1755912217076,-400.0,0.00013698,2]
[380946577,1755912217095,-521.25,0.00013698,2]
[380946578,1755912217116,-400.0,0.00013698,2]
[380946579,1755912217136,-400.0,0.00013698,2]
[380946580,1755912217159,-400.0,0.00013698,2]
[380946581,1755912217179,-442.73774553,0.00013698,2]
[380946582,1755912217201,-400.0,0.00013698,2]
[380946583,1755912217222,-400.0,0.00013698,2]
[380946584,1755912217242,-400.0,0.00013698,2]
[380946585,1755912217263,-522.31106786,0.00013698,2]
[380946586,1755912217284,-400.0,0.00013698,2]
[380946587,1755912217304,-400.0,0.00013698,2]
[380946588,1755912217324,-400.0,0.00013698,2]
[380946589,1755912217344,-400.0,0.00013698,2]
[380946590,1755912217366,-400.0,0.00013698,2]
[380946591,1755912217387,-400.0,0.00013698,2]
[380946592,1755912217408,-500.0,0.00013698,2]
[380946593,1755912217428,-400.0,0.00013698,2]
[380946594,1755912217453,-428.31,0.00013698,2]
[380946595,1755912217474,-481.63,0.00013698,2]
[380946596,1755912217495,-400.0,0.00013698,2]
[380946597,1755912217516,-400.0,0.00013698,2]
[380946598,1755912217537,-400.0,0.00013698,2]
[380946599,1755912217558,-400.0,0.00013698,2]
[380946600,1755912217578,-151.0,0.00013698,2]
[380946601,1755912217599,-400.0,0.00013698,2]
[380946602,1755912217623,-595.01,0.00013698,2]
[380946603,1755912217645,-400.0,0.00013698,2]
[380946604,1755912217666,-400.0,0.00013698,2]
[380946605,1755912217686,-400.0,0.00013698,2]
[380946606,1755912217707,-400.0,0.00013698,2]
[380946607,1755912217729,-403.8638459,0.00013698,2]
[380946608,1755912217754,-400.0,0.00013698,2]
[380946609,1755912217776,-400.0,0.00013698,2]
[380946610,1755912217797,-400.0,0.00013698,2]
[380946611,1755912217818,-400.0,0.00013698,2]
[380946612,1755912217839,-500.0,0.00013698,2]
[380946613,1755912217860,-500.0,0.00013698,2]
[380946614,1755912217881,-151.0,0.00013698,2]
[380946615,1755912217901,-500.0,0.00013698,2]
[380946616,1755912217922,-400.0,0.00013698,2]
[380946617,1755912217945,-400.0,0.00013698,2]
[380946618,1755912217967,-400.0,0.00013698,2]
[380946619,1755912217988,-420.7,0.00013698,2]
[380946620,1755912218009,-400.0,0.00013698,2]
[380946621,1755912218029,-400.0,0.00013698,2]
[380946622,1755912218050,-400.0,0.00013698,2]
[380946623,1755912218072,-400.0,0.00013698,2]
[380946624,1755912218093,-400.0,0.00013698,2]
[380946625,1755912218114,-400.0,0.00013698,2]
[380946626,1755912218135,-490.7,0.00013698,2]
[380946627,1755912218156,-400.0,0.00013698,2]
[380946628,1755912218177,-400.0,0.00013698,2]
[380946629,1755912218199,-400.0,0.00013698,2]
[380946630,1755912218224,-430.5,0.00013698,2]
[380946631,1755912218247,-400.0,0.00013698,2]
[380946632,1755912218267,-400.0,0.00013698,2]
[380946633,1755912218288,-400.0,0.00013698,2]
[380946634,1755912218310,-188.11353075,0.00013698,2]
[380946635,1755912218333,-400.0,0.00013698,2]
[380946636,1755912218355,-400.0,0.00013698,2]
[380946637,1755912218377,-400.0,0.00013698,2]
[380946638,1755912218399,-400.0,0.00013698,2]
[380946639,1755912218419,-400.0,0.00013698,2]
[380946640,1755912218441,-586.97,0.00013698,2]
[380946641,1755912218462,-151.0,0.00013698,2]
[380946642,1755912218483,-151.0,0.00013698,2]
[380946643,1755912218506,-400.0,0.00013698,2]
[380946644,1755912218528,-400.0,0.00013698,2]
[380946645,1755912218550,-151.0,0.00013698,2]
[380946646,1755912218571,-400.0,0.00013698,2]
[380946647,1755912218591,-400.0,0.00013698,2]
[380946648,1755912218611,-400.0,0.00013698,2]
[380946649,1755912218632,-400.0,0.00013698,2]
[380946650,1755912218653,-400.0,0.00013698,2]
[380946651,1755912218674,-151.0,0.00013698,2]
[380946652,1755912218694,-151.0,0.00013698,2]
[380946653,1755912218715,-151.0,0.00013698,2]
[380946654,1755912218736,-400.0,0.00013698,2]
[380946655,1755912218758,-400.0,0.00013698,2]
[380946656,1755912218779,-400.0,0.00013698,2]
[380946657,1755912218799,-400.0,0.00013698,2]
[380946658,1755912218820,-400.0,0.00013698,2]
[380946659,1755912218841,-151.0,0.00013698,2]
[380946660,1755912218862,-400.0,0.00013698,2]
[380946661,1755912218884,-400.0,0.00013698,2]
[380946662,1755912218905,-151.0,0.00013698,2]
[380946663,1755912218925,-400.0,0.00013698,2]
[380946664,1755912218946,-151.0,0.00013698,2]
[380946665,1755912218967,-400.0,0.00013698,2]
[380946666,1755912218987,-400.0,0.00013698,2]
[380946667,1755912219008,-553.61,0.00013698,2]
[380946668,1755912219028,-400.0,0.00013698,2]
[380946669,1755912219049,-412.73,0.00013698,2]
[380946670,1755912219364,-400.0,0.00013698,2]
[380946671,1755912219387,-400.0,0.00013698,2]
[380946672,1755912219411,-400.0,0.00013698,2]
[380946673,1755912219432,-151.0,0.00013698,2]
[380946674,1755912219452,-400.0,0.00013698,2]
[380946675,1755912219473,-400.0,0.00013698,2]
[380946676,1755912219494,-400.0,0.00013698,2]
[380946677,1755912219516,-400.0,0.00013698,2]
[380946678,1755912219537,-400.0,0.00013698,2]
[380946679,1755912219559,-400.0,0.00013698,2]
[380946680,1755912219581,-400.0,0.00013698,2]
[380946681,1755912219602,-400.0,0.00013698,2]
[380946682,1755912219626,-400.0,0.00013698,2]
[380946683,1755912219647,-151.0,0.00013698,2]
[380946684,1755912219668,-151.0,0.00013698,2]
[380946685,1755912219688,-400.0,0.00013698,2]
[380946686,1755912219710,-400.0,0.00013698,2]
[380946687,1755912219732,-400.0,0.00013698,2]
[380946688,1755912219754,-400.0,0.00013698,2]
[380946689,1755912219775,-769.41,0.00013698,2]
[380946690,1755912219796,-400.0,0.00013698,2]
[380946691,1755912219817,-400.0,0.00013698,2]
[380946692,1755912219838,-400.0,0.00013698,2]
[380946693,1755912219859,-417.64,0.00013698,2]
[380946694,1755912219879,-400.0,0.00013698,2]
[380946695,1755912219900,-400.0,0.00013698,2]
[380946696,1755912219920,-255.9874058,0.00013698,2]
[380946697,1755912219942,-400.0,0.00013698,2]
[380946698,1755912219962,-258.828891,0.00013698,2]
[380946699,1755912219983,-400.0,0.00013698,2]
[380946700,1755912220003,-151.0,0.00013698,2]
[380946701,1755912220023,-400.0,0.00013698,2]
[380946702,1755912220045,-400.0,0.00013698,2]
[380946703,1755912220065,-400.0,0.00013698,2]
[380946704,1755912220085,-400.0,0.00013698,2]
[380946705,1755912220105,-400.0,0.00013698,2]
[380946706,1755912220126,-151.0,0.00013698,2]
[380946707,1755912220146,-400.0,0.00013698,2]
[380946708,1755912220166,-400.0,0.00013698,2]
[380946709,1755912220188,-403.86,0.00013698,2]
[380946710,1755912220212,-400.0,0.00013698,2]
[380946711,1755912220232,-500.0,0.00013698,2]
[380946712,1755912220255,-500.0,0.00013698,2]
[380946713,1755912220275,-569.52,0.00013698,2]
[380946714,1755912220295,-534.69,0.00013698,2]
[380946715,1755912220316,-671.48,0.00013698,2]
[380946716,1755912220338,-400.0,0.00013698,2]
[380946717,1755912220360,-400.0,0.00013698,2]
[380946718,1755912220382,-477.51,0.00013698,2]
[380946719,1755912220403,-400.0,0.00013698,2]